[Event "*** SCC Grand Prix: Titled Tuesday Blitz"]
[Site "Chess.com"]
[Date "2020.07.07"]
[Round "1"]
[White "awesomevishesh"]
[Black "Reader777"]
[Result "1-0"]
[WhiteElo "2380"]
[BlackElo "2666"]
[TimeControl "180+1"]
[EndTime "10:07:53 PDT"]
[Termination "awesomevishesh won by resignation"]

1. d4 {[%clk 0:03:00.9]} 1... Nf6 {[%clk 0:02:58.6]} 2. c4 {[%clk 0:02:58]} 2...
c5 {[%clk 0:02:55.6]} 3. d5 {[%clk 0:02:57.7]} 3... e6 {[%clk 0:02:55.4]} 4. Nc3
{[%clk 0:02:57.3]} 4... exd5 {[%clk 0:02:55.8]} 5. cxd5 {[%clk 0:02:58]} 5... d6
{[%clk 0:02:56.4]} 6. Nf3 {[%clk 0:02:58.3]} 6... g6 {[%clk 0:02:56]} 7. g3
{[%clk 0:02:58.6]} 7... Bg7 {[%clk 0:02:55.3]} 8. Bg2 {[%clk 0:02:58.9]} 8...
O-O {[%clk 0:02:55.6]} 9. O-O {[%clk 0:02:59.1]} 9... Re8 {[%clk 0:02:56]} 10.
Re1 {[%clk 0:02:58.9]} 10... Nbd7 {[%clk 0:02:45.9]} 11. h3 {[%clk 0:02:54.6]}
11... a6 {[%clk 0:02:43.4]} 12. a4 {[%clk 0:02:46.4]} 12... Ne4 {[%clk
0:02:37.6]} 13. Nxe4 {[%clk 0:02:25.7]} 13... Rxe4 {[%clk 0:02:36.9]} 14. Nd2
{[%clk 0:02:04.1]} 14... Re8 {[%clk 0:02:30.3]} 15. Qc2 {[%clk 0:01:47.1]} 15...
Rb8 {[%clk 0:02:23.3]} 16. a5 {[%clk 0:01:46.4]} 16... b5 {[%clk 0:02:14.1]} 17.
axb6 {[%clk 0:01:45.6]} 17... Nxb6 {[%clk 0:02:13.4]} 18. Nb3 {[%clk 0:01:38.1]}
18... Bb7 {[%clk 0:01:38.1]} 19. Rd1 {[%clk 0:01:37.1]} 19... Qe7 {[%clk
0:01:22.1]} 20. e4 {[%clk 0:01:23.3]} 20... Bc8 {[%clk 0:01:03.4]} 21. Na5
{[%clk 0:01:17.1]} 21... Bd7 {[%clk 0:01:03]} 22. Be3 {[%clk 0:01:10.8]} 22...
Na4 {[%clk 0:00:40.5]} 23. Nc6 {[%clk 0:00:39.1]} 23... Bxc6 {[%clk 0:00:39.6]}
24. dxc6 {[%clk 0:00:39.6]} 24... Nxb2 {[%clk 0:00:39]} 25. Rdb1 {[%clk
0:00:35.5]} 25... Qe6 {[%clk 0:00:30.7]} 26. Rxa6 {[%clk 0:00:33.2]} 26... Nc4
{[%clk 0:00:23.5]} 27. Bf4 {[%clk 0:00:18.3]} 27... Rxb1+ {[%clk 0:00:21.3]} 28.
Qxb1 {[%clk 0:00:18]} 28... Be5 {[%clk 0:00:11.3]} 29. Bc1 {[%clk 0:00:11.4]}
29... Bd4 {[%clk 0:00:10]} 30. Qb7 {[%clk 0:00:08.2]} 30... Qf6 {[%clk
0:00:08.7]} 31. Ra2 {[%clk 0:00:07.5]} 31... Ne5 {[%clk 0:00:05.8]} 32. c7
{[%clk 0:00:07]} 32... Qe6 {[%clk 0:00:06.1]} 33. Ra8 {[%clk 0:00:05.7]} 33...
Bxf2+ {[%clk 0:00:03.4]} 34. Kxf2 {[%clk 0:00:03.9]} 34... Nd3+ {[%clk
0:00:03.6]} 35. Kg1 {[%clk 0:00:03.7]} 35... Kg7 {[%clk 0:00:01.1]} 36. Rxe8
{[%clk 0:00:03.5]} 36... Qf6 {[%clk 0:00:02]} 37. c8=Q {[%clk 0:00:03.8]} 37...
Qf2+ {[%clk 0:00:01.9]} 38. Kh2 {[%clk 0:00:04.5]} 38... Ne1 {[%clk 0:00:02]}
39. Rg8+ {[%clk 0:00:04.5]} 39... Kf6 {[%clk 0:00:02.4]} 40. e5+ {[%clk
0:00:05]} 40... Kxe5 {[%clk 0:00:01.9]} 41. Qe8+ {[%clk 0:00:05.3]} 41... Kd4
{[%clk 0:00:02.3]} 42. Qexf7 {[%clk 0:00:05.5]} 42... Nf3+ {[%clk 0:00:01.7]}
43. Qbxf3 {[%clk 0:00:05.7]} 43... Qg1+ {[%clk 0:00:02.1]} 44. Kxg1 {[%clk
0:00:05.2]} 1-0

[Event "*** SCC Grand Prix: Titled Tuesday Blitz"]
[Site "Chess.com"]
[Date "2020.07.07"]
[Round "1"]
[White "maciek_92"]
[Black "Danfii"]
[Result "1-0"]
[WhiteElo "2678"]
[BlackElo "2358"]
[TimeControl "180+1"]
[EndTime "10:07:54 PDT"]
[Termination "maciek_92 won on time"]

1. c4 {[%clk 0:03:00.2]} 1... e5 {[%clk 0:02:59.6]} 2. g3 {[%clk 0:02:59.5]}
2... Nf6 {[%clk 0:02:58.4]} 3. Nc3 {[%clk 0:02:58.9]} 3... d5 {[%clk 0:02:58.8]}
4. cxd5 {[%clk 0:02:59.2]} 4... Nxd5 {[%clk 0:02:59.7]} 5. Bg2 {[%clk
0:02:59.9]} 5... Nb6 {[%clk 0:02:59.9]} 6. e3 {[%clk 0:02:59.9]} 6... Nc6 {[%clk
0:03:00]} 7. Nge2 {[%clk 0:03:00.1]} 7... Be7 {[%clk 0:02:59.8]} 8. O-O {[%clk
0:03:00]} 8... O-O {[%clk 0:02:59.4]} 9. f4 {[%clk 0:03:00]} 9... exf4 {[%clk
0:02:58.7]} 10. Nxf4 {[%clk 0:03:00.9]} 10... Re8 {[%clk 0:02:47.1]} 11. b3
{[%clk 0:03:00]} 11... Bf8 {[%clk 0:02:47.1]} 12. Bb2 {[%clk 0:02:58.4]} 12...
Ne5 {[%clk 0:02:40.5]} 13. Qc2 {[%clk 0:02:55.9]} 13... g6 {[%clk 0:02:37.7]}
14. Nfd5 {[%clk 0:02:20.5]} 14... Bg7 {[%clk 0:01:55.5]} 15. a4 {[%clk
0:01:53.1]} 15... c6 {[%clk 0:01:39.1]} 16. Nf4 {[%clk 0:01:52.8]} 16... a5
{[%clk 0:01:25.4]} 17. h3 {[%clk 0:01:51.2]} 17... Ned7 {[%clk 0:01:12.3]} 18.
Rae1 {[%clk 0:01:37.1]} 18... Nc5 {[%clk 0:00:56.9]} 19. d4 {[%clk 0:01:31.2]}
19... Ne6 {[%clk 0:00:53.5]} 20. Nd3 {[%clk 0:01:29.3]} 20... Ng5 {[%clk
0:00:50.3]} 21. Kh2 {[%clk 0:01:24.5]} 21... h5 {[%clk 0:00:44.7]} 22. h4 {[%clk
0:01:13.8]} 22... Nh7 {[%clk 0:00:44.5]} 23. Ne4 {[%clk 0:01:00.1]} 23... Bf5
{[%clk 0:00:40.9]} 24. Rxf5 {[%clk 0:00:54.9]} 24... gxf5 {[%clk 0:00:40.5]} 25.
Nec5 {[%clk 0:00:54.5]} 25... Qc7 {[%clk 0:00:36.6]} 26. Nf4 {[%clk 0:00:54.3]}
26... Nf6 {[%clk 0:00:35.8]} 27. Qxf5 {[%clk 0:00:54.5]} 27... Ng4+ {[%clk
0:00:34.3]} 28. Kg1 {[%clk 0:00:52.1]} 28... Rxe3 {[%clk 0:00:30]} 29. Rxe3
{[%clk 0:00:49]} 29... Nxe3 {[%clk 0:00:30.9]} 30. Qxh5 {[%clk 0:00:49.5]} 30...
Nxg2 {[%clk 0:00:28.3]} 31. Kxg2 {[%clk 0:00:45.8]} 31... Re8 {[%clk 0:00:26.6]}
32. Qg4 {[%clk 0:00:41.7]} 32... Nd5 {[%clk 0:00:14]} 33. Nxd5 {[%clk
0:00:41.3]} 33... cxd5 {[%clk 0:00:14]} 34. Bc1 {[%clk 0:00:41]} 34... b6 {[%clk
0:00:13.4]} 35. Bh6 {[%clk 0:00:30.3]} 35... f5 {[%clk 0:00:13.4]} 36. Qg6
{[%clk 0:00:30.3]} 36... bxc5 {[%clk 0:00:12.6]} 37. Qxe8+ {[%clk 0:00:29.5]}
37... Kh7 {[%clk 0:00:13.2]} 38. Bxg7 {[%clk 0:00:28.3]} 38... Kxg7 {[%clk
0:00:10.9]} 39. h5 {[%clk 0:00:21.7]} 39... cxd4 {[%clk 0:00:10.8]} 40. Qg6+
{[%clk 0:00:21.6]} 40... Kh8 {[%clk 0:00:09.2]} 41. Qxf5 {[%clk 0:00:20.1]}
41... Qc3 {[%clk 0:00:06.1]} 42. Qf6+ {[%clk 0:00:18.7]} 42... Kh7 {[%clk
0:00:05.9]} 43. Qg6+ {[%clk 0:00:15.8]} 43... Kh8 {[%clk 0:00:05.7]} 44. Qf6+
{[%clk 0:00:09.6]} 44... Kh7 {[%clk 0:00:06.1]} 45. Kh3 {[%clk 0:00:09.9]} 45...
Qd2 {[%clk 0:00:03.4]} 46. Qg6+ {[%clk 0:00:09.5]} 46... Kh8 {[%clk 0:00:03.5]}
47. h6 {[%clk 0:00:10.4]} 1-0

[Event "*** SCC Grand Prix: Titled Tuesday Blitz"]
[Site "Chess.com"]
[Date "2020.07.07"]
[Round "1"]
[White "andriipalchuk"]
[Black "Alexander_Moskalenko"]
[Result "1-0"]
[WhiteElo "2437"]
[BlackElo "2788"]
[TimeControl "180+1"]
[EndTime "10:07:55 PDT"]
[Termination "andriipalchuk won on time"]

1. e4 {[%clk 0:02:59.1]} 1... c5 {[%clk 0:02:38.5]} 2. Nf3 {[%clk 0:02:57]} 2...
d6 {[%clk 0:02:37]} 3. c3 {[%clk 0:02:53.2]} 3... Nf6 {[%clk 0:02:36.1]} 4. h3
{[%clk 0:02:51.9]} 4... Bd7 {[%clk 0:02:33.2]} 5. Bd3 {[%clk 0:02:52.3]} 5...
Bc6 {[%clk 0:02:32.3]} 6. Qe2 {[%clk 0:02:49.2]} 6... g6 {[%clk 0:02:29.6]} 7.
O-O {[%clk 0:02:48.1]} 7... Bg7 {[%clk 0:02:30.1]} 8. Bc2 {[%clk 0:02:43.6]}
8... O-O {[%clk 0:02:28.1]} 9. d3 {[%clk 0:02:41.1]} 9... b5 {[%clk 0:02:26.3]}
10. Nbd2 {[%clk 0:02:38.2]} 10... Nbd7 {[%clk 0:02:25.2]} 11. Re1 {[%clk
0:02:32.4]} 11... e5 {[%clk 0:02:24.3]} 12. Nf1 {[%clk 0:02:31.6]} 12... a6
{[%clk 0:02:24.4]} 13. Bg5 {[%clk 0:02:28.9]} 13... h6 {[%clk 0:02:24]} 14. Bh4
{[%clk 0:02:28.5]} 14... Re8 {[%clk 0:02:24.3]} 15. Ne3 {[%clk 0:02:27.9]} 15...
Qc7 {[%clk 0:02:22.4]} 16. Rad1 {[%clk 0:02:26.5]} 16... Nh5 {[%clk 0:02:22]}
17. Qf1 {[%clk 0:02:18.2]} 17... Nf4 {[%clk 0:02:19.2]} 18. g3 {[%clk
0:02:15.6]} 18... Nh5 {[%clk 0:02:17]} 19. g4 {[%clk 0:02:12.8]} 19... Nf4
{[%clk 0:02:16.4]} 20. Bg3 {[%clk 0:02:08.7]} 20... Nf6 {[%clk 0:02:15.3]} 21.
Kh2 {[%clk 0:02:05.4]} 21... Rab8 {[%clk 0:01:04.3]} 22. Ng2 {[%clk 0:01:52.1]}
22... Nxg2 {[%clk 0:01:02.2]} 23. Kxg2 {[%clk 0:01:46]} 23... Re7 {[%clk
0:00:55.6]} 24. Kh2 {[%clk 0:01:42.7]} 24... d5 {[%clk 0:00:51]} 25. exd5 {[%clk
0:01:40.6]} 25... Nxd5 {[%clk 0:00:51.9]} 26. Bb3 {[%clk 0:01:16.5]} 26... Nxc3
{[%clk 0:00:49.1]} 27. bxc3 {[%clk 0:01:05.8]} 27... Bxf3 {[%clk 0:00:48.4]} 28.
Rc1 {[%clk 0:01:06.5]} 28... Rbe8 {[%clk 0:00:43.1]} 29. Re3 {[%clk 0:01:03.5]}
29... Bb7 {[%clk 0:00:42.9]} 30. Rce1 {[%clk 0:01:03.2]} 30... Kh7 {[%clk
0:00:34.2]} 31. d4 {[%clk 0:00:57.5]} 31... Ba8 {[%clk 0:00:14.3]} 32. f3 {[%clk
0:00:33]} 32... b4 {[%clk 0:00:13.8]} 33. Qxa6 {[%clk 0:00:26.1]} 33... bxc3
{[%clk 0:00:09]} 34. Rxc3 {[%clk 0:00:24]} 34... Qd8 {[%clk 0:00:04.4]} 35. Rxc5
{[%clk 0:00:18.9]} 35... Qxd4 {[%clk 0:00:03.4]} 36. Rc2 {[%clk 0:00:18.5]}
36... Bxf3 {[%clk 0:00:02.5]} 37. Qc4 {[%clk 0:00:16.2]} 37... Qxc4 {[%clk
0:00:02]} 38. Rxc4 {[%clk 0:00:16.7]} 38... e4 {[%clk 0:00:02.9]} 39. Bd6 {[%clk
0:00:14.6]} 39... Ra7 {[%clk 0:00:01.8]} 40. Ra4 {[%clk 0:00:13.6]} 40... Rea8
{[%clk 0:00:02.7]} 41. Rxa7 {[%clk 0:00:13.5]} 41... Rxa7 {[%clk 0:00:02.2]} 42.
Bc5 {[%clk 0:00:14.1]} 42... Rc7 {[%clk 0:00:01.2]} 43. Bb6 {[%clk 0:00:14.5]}
43... Rd7 {[%clk 0:00:01.8]} 44. a4 {[%clk 0:00:13.5]} 44... Be5+ {[%clk
0:00:02.3]} 45. Kg1 {[%clk 0:00:13.4]} 45... f5 {[%clk 0:00:03.2]} 46. gxf5
{[%clk 0:00:11.6]} 46... gxf5 {[%clk 0:00:04.1]} 47. Be6 {[%clk 0:00:11.4]}
47... Rg7+ {[%clk 0:00:03]} 48. Kf1 {[%clk 0:00:12]} 48... f4 {[%clk 0:00:03.1]}
49. Bf5+ {[%clk 0:00:11.6]} 49... Kh8 {[%clk 0:00:02.6]} 50. Bxe4 {[%clk
0:00:12.5]} 1-0

[Event "*** SCC Grand Prix: Titled Tuesday Blitz"]
[Site "Chess.com"]
[Date "2020.07.07"]
[Round "1"]
[White "Ural_bogatyr"]
[Black "Aygehovit1992"]
[Result "1-0"]
[WhiteElo "2340"]
[BlackElo "2633"]
[TimeControl "180+1"]
[EndTime "10:07:55 PDT"]
[Termination "Ural_bogatyr won on time"]

1. e4 {[%clk 0:02:58.6]} 1... c5 {[%clk 0:02:59.5]} 2. Nf3 {[%clk 0:02:58]} 2...
d6 {[%clk 0:02:59.8]} 3. d4 {[%clk 0:02:57.7]} 3... cxd4 {[%clk 0:03:00.2]} 4.
Qxd4 {[%clk 0:02:58.6]} 4... Nf6 {[%clk 0:02:58.3]} 5. Nc3 {[%clk 0:02:58.1]}
5... Nc6 {[%clk 0:02:57.4]} 6. Bb5 {[%clk 0:02:58.2]} 6... Bd7 {[%clk
0:02:57.9]} 7. Bxc6 {[%clk 0:02:58]} 7... Bxc6 {[%clk 0:02:58.5]} 8. Bg5 {[%clk
0:02:57.9]} 8... h6 {[%clk 0:02:57.2]} 9. Bxf6 {[%clk 0:02:52.8]} 9... gxf6
{[%clk 0:02:58.1]} 10. O-O-O {[%clk 0:02:52.1]} 10... Qb6 {[%clk 0:02:52.6]} 11.
Qxb6 {[%clk 0:02:29.5]} 11... axb6 {[%clk 0:02:50.5]} 12. Kb1 {[%clk 0:02:17.6]}
12... Rg8 {[%clk 0:02:20.1]} 13. Rhg1 {[%clk 0:02:12.1]} 13... Rg4 {[%clk
0:02:06.1]} 14. Nd4 {[%clk 0:01:40.1]} 14... Kd7 {[%clk 0:01:51]} 15. f3 {[%clk
0:01:29.2]} 15... Rg5 {[%clk 0:01:50]} 16. Nf5 {[%clk 0:01:17]} 16... e6 {[%clk
0:01:43.9]} 17. h4 {[%clk 0:01:16.8]} 17... Rg8 {[%clk 0:01:36.9]} 18. Nd4
{[%clk 0:01:15.3]} 18... Be7 {[%clk 0:01:26.7]} 19. Rd2 {[%clk 0:01:11.3]} 19...
Ra5 {[%clk 0:01:25.1]} 20. b4 {[%clk 0:00:41.8]} 20... Ra3 {[%clk 0:00:39.8]}
21. Ndb5 {[%clk 0:00:21.9]} 21... Bxb5 {[%clk 0:00:34.9]} 22. Nxb5 {[%clk
0:00:22.8]} 22... Ra4 {[%clk 0:00:35.4]} 23. c3 {[%clk 0:00:11.4]} 23... Rc8
{[%clk 0:00:34.9]} 24. Rgd1 {[%clk 0:00:08.9]} 24... Rc6 {[%clk 0:00:34.7]} 25.
Kb2 {[%clk 0:00:08]} 25... Ra8 {[%clk 0:00:33.1]} 26. Nd4 {[%clk 0:00:07.5]}
26... Rcc8 {[%clk 0:00:29.3]} 27. Nb5 {[%clk 0:00:07.7]} 27... Rc6 {[%clk
0:00:29.3]} 28. Nd4 {[%clk 0:00:07.5]} 28... Rc4 {[%clk 0:00:13.8]} 29. Nb5
{[%clk 0:00:07.4]} 29... d5 {[%clk 0:00:10.2]} 30. exd5 {[%clk 0:00:06.2]} 30...
e5 {[%clk 0:00:10.7]} 31. d6 {[%clk 0:00:05.7]} 31... Bd8 {[%clk 0:00:09.8]} 32.
g3 {[%clk 0:00:05.3]} 32... Rc6 {[%clk 0:00:09.2]} 33. Kb3 {[%clk 0:00:04.6]}
33... f5 {[%clk 0:00:09.6]} 34. a4 {[%clk 0:00:03.9]} 34... f4 {[%clk
0:00:08.6]} 35. gxf4 {[%clk 0:00:03.2]} 35... exf4 {[%clk 0:00:09]} 36. Rh1
{[%clk 0:00:03.1]} 36... Bf6 {[%clk 0:00:08.8]} 37. Rd5 {[%clk 0:00:02.9]} 37...
Re8 {[%clk 0:00:08.3]} 38. Rf5 {[%clk 0:00:02.6]} 38... Re6 {[%clk 0:00:08.5]}
39. Rxf4 {[%clk 0:00:02.1]} 39... Rc8 {[%clk 0:00:07.4]} 40. h5 {[%clk
0:00:01.8]} 40... Rg8 {[%clk 0:00:07.1]} 41. Rd1 {[%clk 0:00:01.4]} 41... Rg5
{[%clk 0:00:02.4]} 42. Rc4 {[%clk 0:00:01.7]} 42... Bd8 {[%clk 0:00:02.2]} 43.
Rc7+ {[%clk 0:00:02]} 43... Bxc7 {[%clk 0:00:01.6]} 44. dxc7+ {[%clk 0:00:02.9]}
1-0

[Event "*** SCC Grand Prix: Titled Tuesday Blitz"]
[Site "Chess.com"]
[Date "2020.07.07"]
[Round "1"]
[White "ShahMatKanal"]
[Black "harkerchess"]
[Result "1-0"]
[WhiteElo "2506"]
[BlackElo "2088"]
[TimeControl "180+1"]
[EndTime "10:07:56 PDT"]
[Termination "ShahMatKanal won by resignation"]

1. e4 {[%clk 0:02:58.9]} 1... e5 {[%clk 0:02:58]} 2. Nf3 {[%clk 0:02:57.8]} 2...
Nc6 {[%clk 0:02:57.5]} 3. Bb5 {[%clk 0:02:54.3]} 3... a6 {[%clk 0:02:57.4]} 4.
Ba4 {[%clk 0:02:50.2]} 4... Nf6 {[%clk 0:02:55]} 5. O-O {[%clk 0:02:46.9]} 5...
Be7 {[%clk 0:02:54.1]} 6. Re1 {[%clk 0:02:45.3]} 6... b5 {[%clk 0:02:52.3]} 7.
Bb3 {[%clk 0:02:45.1]} 7... d6 {[%clk 0:02:50.6]} 8. h3 {[%clk 0:02:42.6]} 8...
O-O {[%clk 0:02:50.3]} 9. c3 {[%clk 0:02:42.1]} 9... Nb8 {[%clk 0:02:48.3]} 10.
a4 {[%clk 0:02:38.2]} 10... Bb7 {[%clk 0:02:47.6]} 11. d3 {[%clk 0:02:36.3]}
11... Nbd7 {[%clk 0:02:47]} 12. Bc2 {[%clk 0:02:30]} 12... c5 {[%clk 0:02:43.5]}
13. Nbd2 {[%clk 0:02:28.9]} 13... Re8 {[%clk 0:02:43.1]} 14. Nf1 {[%clk
0:02:26.3]} 14... Bf8 {[%clk 0:02:43.2]} 15. Ng3 {[%clk 0:02:17.9]} 15... g6
{[%clk 0:02:40.1]} 16. Bb3 {[%clk 0:01:59.7]} 16... Bg7 {[%clk 0:02:37.3]} 17.
Ng5 {[%clk 0:01:56.6]} 17... Re7 {[%clk 0:02:30.9]} 18. Bd2 {[%clk 0:01:44.8]}
18... h6 {[%clk 0:02:23.8]} 19. Nf3 {[%clk 0:01:44.7]} 19... Re8 {[%clk
0:02:16.5]} 20. Nh4 {[%clk 0:01:39.3]} 20... Nf8 {[%clk 0:02:12.9]} 21. Qf3
{[%clk 0:01:32.2]} 21... Re7 {[%clk 0:02:01.1]} 22. axb5 {[%clk 0:01:30.7]}
22... axb5 {[%clk 0:02:00.4]} 23. Rxa8 {[%clk 0:01:31.6]} 23... Qxa8 {[%clk
0:02:00.1]} 24. Ngf5 {[%clk 0:01:07.5]} 24... Rd7 {[%clk 0:01:51.5]} 25. Nxh6+
{[%clk 0:00:56.5]} 25... Bxh6 {[%clk 0:01:49.5]} 26. Bxh6 {[%clk 0:00:56.1]}
26... Qd8 {[%clk 0:01:40.3]} 27. g3 {[%clk 0:00:25.3]} 27... Qe7 {[%clk
0:01:09.4]} 28. Bg5 {[%clk 0:00:24]} 28... Kg7 {[%clk 0:01:05.8]} 29. Bc2 {[%clk
0:00:16.7]} 29... N8h7 {[%clk 0:01:01.5]} 30. Be3 {[%clk 0:00:16.7]} 30... Bc8
{[%clk 0:00:57.6]} 31. Kh2 {[%clk 0:00:15.7]} 31... Ra7 {[%clk 0:00:48.1]} 32.
Ng2 {[%clk 0:00:15.2]} 32... Ra2 {[%clk 0:00:46.3]} 33. Bc1 {[%clk 0:00:15.5]}
33... Qe6 {[%clk 0:00:39.5]} 34. g4 {[%clk 0:00:14.3]} 34... c4 {[%clk
0:00:33.2]} 35. d4 {[%clk 0:00:13.6]} 35... Bb7 {[%clk 0:00:24.5]} 36. d5 {[%clk
0:00:13]} 36... Qd7 {[%clk 0:00:23.5]} 37. Rg1 {[%clk 0:00:12.1]} 37... Ra8
{[%clk 0:00:22.4]} 38. Ne3 {[%clk 0:00:12]} 38... Ng5 {[%clk 0:00:21.4]} 39. Qg2
{[%clk 0:00:11.8]} 39... Rh8 {[%clk 0:00:20.7]} 40. Nf5+ {[%clk 0:00:12.1]}
40... gxf5 {[%clk 0:00:20.6]} 41. gxf5 {[%clk 0:00:11.2]} 41... Nh7 {[%clk
0:00:16.4]} 42. Bxg5 {[%clk 0:00:10.9]} 42... Nxg5 {[%clk 0:00:16.8]} 43. Qxg5+
{[%clk 0:00:11.8]} 43... Kf8 {[%clk 0:00:16.9]} 44. Qg7+ {[%clk 0:00:12.1]}
44... Ke7 {[%clk 0:00:16.6]} 45. f6+ {[%clk 0:00:12.5]} 45... Kd8 {[%clk
0:00:17]} 46. Qxh8+ {[%clk 0:00:13.4]} 46... Kc7 {[%clk 0:00:17.9]} 47. Qf8
{[%clk 0:00:10.9]} 47... Bc8 {[%clk 0:00:17.5]} 48. Qe7 {[%clk 0:00:10.8]} 48...
Kb6 {[%clk 0:00:16.4]} 49. Qxd7 {[%clk 0:00:10.8]} 49... Bxd7 {[%clk 0:00:17.3]}
50. Rg7 {[%clk 0:00:11.7]} 50... Be8 {[%clk 0:00:18.2]} 51. Rg8 {[%clk
0:00:11.7]} 51... Bd7 {[%clk 0:00:17.2]} 52. Rf8 {[%clk 0:00:12]} 52... b4
{[%clk 0:00:13.4]} 53. Rxf7 {[%clk 0:00:10.9]} 53... bxc3 {[%clk 0:00:14.3]} 54.
bxc3 {[%clk 0:00:10.6]} 54... Ba4 {[%clk 0:00:13.5]} 55. Bxa4 {[%clk 0:00:10.3]}
1-0

[Event "*** SCC Grand Prix: Titled Tuesday Blitz"]
[Site "Chess.com"]
[Date "2020.07.07"]
[Round "1"]
[White "Meri-Arabidze"]
[Black "Khazieva_Elza"]
[Result "1/2-1/2"]
[WhiteElo "2600"]
[BlackElo "2286"]
[TimeControl "180+1"]
[EndTime "10:07:57 PDT"]
[Termination "Game drawn by repetition"]

1. d4 {[%clk 0:02:58.8]} 1... Nf6 {[%clk 0:02:59.9]} 2. c4 {[%clk 0:02:58.1]}
2... d6 {[%clk 0:03:00.4]} 3. Nf3 {[%clk 0:02:58.6]} 3... Bf5 {[%clk 0:03:01]}
4. Nc3 {[%clk 0:02:58.4]} 4... c6 {[%clk 0:03:01.2]} 5. g3 {[%clk 0:02:57.1]}
5... h6 {[%clk 0:03:00.9]} 6. Bg2 {[%clk 0:02:57.1]} 6... Nbd7 {[%clk 0:03:01]}
7. O-O {[%clk 0:02:53.5]} 7... e5 {[%clk 0:03:01.1]} 8. Nh4 {[%clk 0:02:43.1]}
8... Bh7 {[%clk 0:02:56.8]} 9. e4 {[%clk 0:02:42.5]} 9... exd4 {[%clk
0:02:53.8]} 10. Qxd4 {[%clk 0:02:41.4]} 10... Be7 {[%clk 0:02:40]} 11. Nf5
{[%clk 0:02:40.7]} 11... Bxf5 {[%clk 0:02:38.9]} 12. exf5 {[%clk 0:02:41.6]}
12... O-O {[%clk 0:02:38.8]} 13. b3 {[%clk 0:02:38.3]} 13... Qa5 {[%clk
0:02:28]} 14. g4 {[%clk 0:02:28.7]} 14... Qe5 {[%clk 0:02:11.1]} 15. Qxe5 {[%clk
0:02:20.6]} 15... Nxe5 {[%clk 0:01:54.9]} 16. h3 {[%clk 0:02:21.5]} 16... Nd3
{[%clk 0:01:34.4]} 17. Be3 {[%clk 0:02:20.7]} 17... Nd7 {[%clk 0:01:34.5]} 18.
Rad1 {[%clk 0:02:16.2]} 18... N3c5 {[%clk 0:01:21.9]} 19. b4 {[%clk 0:02:10.5]}
19... Na6 {[%clk 0:01:16.5]} 20. b5 {[%clk 0:02:09.3]} 20... Nab8 {[%clk
0:01:09.3]} 21. f4 {[%clk 0:02:00]} 21... Nb6 {[%clk 0:01:04.8]} 22. bxc6 {[%clk
0:01:34.1]} 22... Nxc6 {[%clk 0:00:51.9]} 23. Nd5 {[%clk 0:01:32.7]} 23... Nxc4
{[%clk 0:00:48.1]} 24. Rfe1 {[%clk 0:01:13.3]} 24... Bd8 {[%clk 0:00:42.5]} 25.
Bf2 {[%clk 0:01:10.3]} 25... Ba5 {[%clk 0:00:24.3]} 26. Re4 {[%clk 0:01:05.2]}
26... Nd2 {[%clk 0:00:17.5]} 27. Re2 {[%clk 0:01:01.2]} 27... Nc4 {[%clk
0:00:16.2]} 28. Ne7+ {[%clk 0:01:01.2]} 28... Nxe7 {[%clk 0:00:15.7]} 29. Rxe7
{[%clk 0:01:02.1]} 29... Rae8 {[%clk 0:00:10.5]} 30. Rxb7 {[%clk 0:00:58.9]}
30... a6 {[%clk 0:00:10.4]} 31. Rd4 {[%clk 0:00:47.1]} 31... Ne3 {[%clk
0:00:09.5]} 32. Rxd6 {[%clk 0:00:46.5]} 32... Nxg2 {[%clk 0:00:08.6]} 33. Kxg2
{[%clk 0:00:47.4]} 33... Re2 {[%clk 0:00:08.5]} 34. Rxa6 {[%clk 0:00:46.4]}
34... Be1 {[%clk 0:00:08.5]} 35. Kf1 {[%clk 0:00:44.1]} 35... Rxf2+ {[%clk
0:00:08.5]} 36. Kxe1 {[%clk 0:00:44.2]} 36... Rh2 {[%clk 0:00:08.3]} 37. Raa7
{[%clk 0:00:40]} 37... Re8+ {[%clk 0:00:08.4]} 38. Kf1 {[%clk 0:00:39.2]} 38...
Rc8 {[%clk 0:00:08.2]} 39. Kg1 {[%clk 0:00:24.6]} 39... Rd2 {[%clk 0:00:07.2]}
40. Rb1 {[%clk 0:00:23.3]} 40... Rcc2 {[%clk 0:00:05.8]} 41. Ra8+ {[%clk
0:00:22.4]} 41... Kh7 {[%clk 0:00:05.3]} 42. Re8 {[%clk 0:00:19.2]} 42... Rg2+
{[%clk 0:00:05.1]} 43. Kf1 {[%clk 0:00:18.6]} 43... Rcf2+ {[%clk 0:00:04.8]} 44.
Ke1 {[%clk 0:00:18.8]} 44... Rxa2 {[%clk 0:00:05]} 45. Kf1 {[%clk 0:00:16.1]}
45... Raf2+ {[%clk 0:00:05]} 46. Ke1 {[%clk 0:00:16.2]} 46... Ra2 {[%clk
0:00:02.8]} 47. Kf1 {[%clk 0:00:11.7]} 47... Raf2+ {[%clk 0:00:03]} 48. Ke1
{[%clk 0:00:11.5]} 48... Ra2 {[%clk 0:00:03.9]} 1/2-1/2